Cogmind - Beta 17.1 @@@ ROGUE MODE // 2026.09.07 @ 13:07:28 Player: MAXX-P31 Result: Destroyed by P-80 Master with Gamma Rifle Performance ------------- Evolutions (9) 4500 Regions Visited (16) 3200 Robots Destroyed (493) 2465 Value Destroyed (20059) 20059 Prototype IDs (19) 380 Alien Tech Used (0) 0 Bonus (10164) 10164 TOTAL SCORE: 40768 Bonus ------- High Alert Combat Kills 4381 Follower Combat Kills 2183 Entered DSFs 500 Built Enhanced Grunts 300 A7 Reached Mainframe 300 Met R17 at Cetus 500 Met R17 at Research 2000 Cogmind --------- Core Integrity 0/1600 Matter 133/300 Energy 93/100 System Corruption 31% Temperature Cool (0) Movement Core (50) Location -1/Access Parts ------- > --- POWER (3) -------- (None) > --- PROPULSION (6) --- (None) > --- UTILITY (11) ----- (None) > --- WEAPON (5) ------- (None) > --- INVENTORY (5) ---- Reinforced Quantum Reactor Energy Well (350) Advanced Sensor Array Advanced Transmission Jammer Point Singularity Launcher Peak State ------------ > --- POWER ------------ Quantum Reactor Quantum Reactor Light Quantum Reactor > --- PROPULSION ------- Armored Heavy Treads Biometal Heavy Treads Advanced Heavy Siege Treads > --- UTILITY ---------- Advanced Heat Sink Advanced Heat Sink Advanced Heat Sink Improved Cooling System Huge Storage Unit Enhanced Optical Array Advanced Sensor Array Advanced Signal Interpreter Long-range Terrain Scanner Transport Network Coupler Experimental Thermal Shield > --- WEAPON ----------- Phase Gun Advanced Variable Charge Gun Enhanced Nova Cannon Enhanced Nova Cannon Point Singularity Launcher > --- INVENTORY -------- Quantum Reactor Quantum Reactor Reinforced Quantum Reactor Reinforced Quantum Reactor Advanced Medium Treads Biometal Medium Treads Advanced Heavy Siege Treads Advanced Heavy Siege Treads Advanced Heavy Siege Treads Advanced Heat Sink Improved Cooling System Energy Well Large Matter Pod Advanced Sensor Array Advanced Particle Charger Advanced Transmission Jammer Advanced ECM Suite Improved Force Field Improved Force Field Gamma Bomb Array Improved Grenade Launcher Plasma Cutter [Rating: 191] Favorites ----------- Power Light Antimatter Reactor Engine Improved Ion Engine Power Core Neutrino Core Reactor Light Antimatter Reactor Propulsion Light Treads Treads Light Treads Leg Carbon-fiber Leg Wheel Wheel Utility Improved Cooling System Device Improved Cooling System Storage Huge Storage Unit Processor Transport Network Coupler Protection Powered Armor Weapon Improved Medium Laser Energy Gun Improved Medium Laser Energy Cannon Advanced Beam Cannon Ballistic Gun Improved Heavy Machine Gun Ballistic Cannon Assault Cannon Launcher Missile Launcher Special Weapon Plasma Cutter Build | -11 -10 -9 -8 -8 -7 -6 -5 -4 -4 -4 -4 -4 -3 -2 -2 -1 ------- Run | Yrd Mat Mat Mat Sto Fac Fac Fac Fac Ext Cet Arc Hub Res Res DSF Acc Slots Evolved 18 | . . 2 2 . 2 2 2 2 . . . . 2 2 . 2 Power 2 | . . . . . . 1 . 1 . . . . . . . . Propulsion 4 | . . . 1 . 1 . 1 . . . . . 1 . . . Utility 9 | . . 1 1 . 1 1 . 1 . . . . 1 1 . 2 Weapon 3 | . . 1 . . . . 1 . . . . . . 1 . . Parts Attached 263 | 8 7 13 28 17 22 32 25 12 23 6 1 11 7 . 12 39 Power 37 | 2 . 1 3 1 2 3 3 6 4 1 . 4 . . 3 4 Engine 14 | 2 . 1 3 1 2 3 . 2 . . . . . . . . Core 5 | . . . . . . . 3 1 1 . . . . . . . Reactor 18 | . . . . . . . . 3 3 1 . 4 . . 3 4 Propulsion 76 | 2 . 4 8 8 6 7 13 1 9 1 . 1 2 . 5 9 Treads 55 | 2 . 4 8 8 6 6 . . 4 1 . 1 2 . 5 8 Leg 15 | . . . . . . 1 7 1 5 . . . . . . 1 Wheel 6 | . . . . . . . 6 . . . . . . . . . Hover . | . . . . . . . . . . . . . . . . . Flight . | . . . . . . . . . . . . . . . . . Utility 68 | 2 4 2 7 2 9 10 4 3 4 2 . 4 1 . 3 11 Device 39 | 1 2 . 5 . 3 6 3 2 2 . . 3 . . 2 10 Storage 4 | 1 2 . . . 1 . . . . . . . . . . . Processor 7 | . . . . . 1 2 . 1 . . . . 1 . 1 1 Hackware . | . . . . . . . . . . . . . . . . . Protection 18 | . . 2 2 2 4 2 1 . 2 2 . 1 . . . . Artifact . | . . . . . . . . . . . . . . . . . Weapon 82 | 2 3 6 10 6 5 12 5 2 6 2 1 2 4 . 1 15 Energy Gun 42 | 1 3 4 6 5 1 3 3 1 5 1 1 . 4 . 1 3 Energy Cannon 15 | . . 1 2 . 1 4 1 . . . . 1 . . . 5 Ballistic Gun 10 | 1 . 1 . . 1 2 1 . . 1 . . . . . 3 Ballistic Cannon 3 | . . . . 1 . . . . . . . . . . . 2 Launcher 8 | . . . 2 . 1 2 . . . . . 1 . . . 2 Special Weapon 4 | . . . . . 1 1 . 1 1 . . . . . . . Impact Weapon . | . . . . . . . . . . . . . . . . . Slashing Weapon . | . . . . . . . . . . . . . . . . . Piercing Weapon . | . . . . . . . . . . . . . . . . . Special Melee Weapon . | . . . . . . . . . . . . . . . . . Unidentified Prototypes 13 | . . 1 1 . . 3 . . . 4 . 3 . . . 1 Corrupted Parts 3 | . . . . . . . . . . . . . . . . 3 System Corruption 11 | . . . . . . . . . . . . . . . . 11 Parts Lost 72 | . 1 . 6 2 11 5 2 . 2 . . 1 1 . 4 37 Power 5 | . . . 1 . . . 1 . . . . . . . . 3 Propulsion 18 | . . . 3 . 4 3 . . 1 . . . . . 1 6 Utility 26 | . 1 . 1 1 5 1 . . 1 . . 1 1 . 2 12 Weapon 23 | . . . 1 1 2 1 1 . . . . . . . 1 16 Highest Loss Streak 13 | . 1 . 2 2 7 1 2 . 1 . . 1 1 . 4 13 To Critical Strikes 3 | . . . . . . . . . . . . . . . . 3 Average Backups 21 | 1 9 19 19 19 22 24 24 23 23 24 25 24 24 25 21 20 Power 1 | . 1 1 . 1 1 1 2 3 3 2 2 2 2 2 2 3 Propulsion 2 | . 2 3 2 1 3 . 1 2 2 4 4 4 3 3 3 4 Utility 8 | . 3 6 6 6 9 12 11 10 10 10 10 10 9 10 7 8 Weapon 6 | 1 2 8 8 8 7 8 6 5 5 6 7 6 8 9 7 3 Tool/Special . | . . . . . . . . . . . . . . . . . Unused Backups 50 | . . 17 7 . 2 8 2 . 2 2 . . 1 . 4 5 Power 3 | . . 1 . . 1 . . . 1 . . . . . . . Propulsion 5 | . . 2 . . . . . . . . . . . . 3 . Utility 17 | . . 1 4 . 1 2 1 . 1 2 . . . . 1 4 Weapon 25 | . . 13 3 . . 6 1 . . . . . 1 . . 1 Tool/Special . | . . . . . . . . . . . . . . . . . Average Slot Usage (%) 96 | . 98 99 99 90 91 99 98 99 98 90 89 88 89 83 96 86 Engine 7 | . 14 11 9 9 7 13 3 5 1 . . . . . . . Reactor 3 | . . . . . . . . 3 10 13 15 15 14 13 13 11 Treads 20 | . 27 21 26 26 29 25 8 . 4 16 15 15 19 17 23 16 Leg 3 | . . . . . . . 11 25 20 . . . . . . . Device 16 | . 13 11 17 10 9 18 16 18 15 15 15 16 19 18 17 24 Storage 7 | . 14 11 9 9 7 6 5 5 5 5 5 5 4 4 4 3 Processor 4 | . . . . . . 4 5 9 10 10 10 5 8 8 12 12 Protection 6 | . . 10 8 8 12 8 5 1 4 5 5 7 4 4 4 . Energy Gun 16 | . 16 30 24 25 17 2 9 9 18 20 21 20 18 17 20 9 Energy Cannon 4 | . . 1 2 . 3 11 10 5 . . . . . . . 7 Ballistic Gun 1 | . 11 1 . . . 4 1 4 . . . . . . . . Peak Build Rating 191 | 7 15 23 29 29 45 64 81 100 102 121 121 132 146 152 169 191 Average Rating 64 | 5 10 21 27 26 33 54 72 89 94 114 120 124 138 145 161 168 On Entrance 76 | . 7 15 23 28 26 45 64 77 92 97 118 121 126 144 152 168 Avg Prop Armor Cover (%) 10 | . . . . . . 3 11 . 3 . . . . . . . Naked Turns 86 | . . . . . . . . . . . . . . . . 86 Heaviest Build 216 | 15 52 66 73 77 124 145 147 180 162 155 154 166 160 166 183 216 Greatest Support 230 | 40 40 40 60 60 83 96 90 85 139 173 173 173 208 208 208 230 Greatest Overweight (x) 14 | . 1 1 1 1 1 2 14 2 2 1 . . . . 1 1 Average Overweight (x) . | . . 1 . . . 1 4 1 1 . . . . . . . Largest Inventory Capacity 25 | 8 20 20 20 20 25 25 25 25 25 25 25 25 25 25 25 25 Average Capacity 22 | 7 16 20 20 20 23 25 25 25 25 25 25 25 25 25 25 24 Most Carried 25 | 3 19 20 20 20 25 25 25 25 25 25 25 25 25 25 25 25 Average Carried 21 | 1 9 19 19 19 22 24 24 24 24 24 24 24 24 24 23 22 Final Capacity 25 | 8 20 20 20 20 25 25 25 25 25 25 25 25 25 25 25 5 Final Carried 25 | 2 19 20 20 20 24 24 25 25 25 25 25 25 25 23 25 5 Class Distribution -------------------- 72% | Scavenger-Tank 11% | Tank 6% | Mutant 6% | Scavenger-Skirmisher Dominant Class ---------------- Mutant | -10/Materials Tank | -9/Materials Scavenger-Tank | -8/Materials Scavenger-Tank | -8/Storage Scavenger-Tank | -7/Factory Scavenger-Tank | -6/Factory Scavenger-Tank | -5/Factory Scavenger-Skirmisher | -4/Factory Scavenger-Tank | -4/Extension Scavenger-Tank | -4/Cetus Scavenger-Tank | -4/Archives Scavenger-Tank | -4/Hub_04(d) Scavenger-Tank | -3/Research Scavenger-Tank | -2/Research Scavenger-Gunner | -2/DSF Scavenger-Skirmisher | -1/Access Resources | -11 -10 -9 -8 -8 -7 -6 -5 -4 -4 -4 -4 -4 -3 -2 -2 -1 ----------- Run | Yrd Mat Mat Mat Sto Fac Fac Fac Fac Ext Cet Arc Hub Res Res DSF Acc Matter Collected 6398 | 322 264 436 642 339 490 930 585 246 566 135 20 233 192 . 209 789 Remotely . | . . . . . . . . . . . . . . . . . Salvage Created 23386 | 121 461 1638 2865 1590 1701 4074 2399 623 1295 246 10 822 711 . 549 4281 Parts 940 | 7 28 95 108 62 92 148 87 22 40 8 2 16 22 . 21 182 Haulers Intercepted 22 | . 2 5 4 3 2 5 . . . . . 1 . . . . Recyclers Shooed 19 | 1 1 . 2 1 3 1 6 2 1 . . . . . . 1 Parts Field Recycled . | . . . . . . . . . . . . . . . . . Retrieved Matter . | . . . . . . . . . . . . . . . . . Parts Self-Destructed . | . . . . . . . . . . . . . . . . . Prevented . | . . . . . . . . . . . . . . . . . Parts Restored . | . . . . . . . . . . . . . . . . . Kills | -11 -10 -9 -8 -8 -7 -6 -5 -4 -4 -4 -4 -4 -3 -2 -2 -1 ------- Run | Yrd Mat Mat Mat Sto Fac Fac Fac Fac Ext Cet Arc Hub Res Res DSF Acc Combat Hostiles Destroyed 357 | . 9 34 61 27 32 56 35 7 13 3 . 8 10 . 8 54 Melee 1 | . . . . . . . . . . . . . . . . 1 Guns 174 | . 9 31 43 20 14 9 10 5 8 2 . 5 3 . 4 11 Cannons 82 | . . 2 2 4 7 28 15 1 . . . . . . . 23 AOE 64 | . . . 16 . 10 14 4 . . . . 2 7 . 4 7 Classes Destroyed 20 | 2 3 4 4 . 4 2 1 . . . . . . . . . Worker 27 | . . 2 2 3 7 3 2 1 . . . . 1 . . 6 Builder 20 | . . . 3 . 3 2 . . . . . . 2 . . 10 Tunneler 11 | 3 . 2 3 . . 1 2 . . . . . . . . . Hauler 22 | . 2 5 4 3 2 5 . . . . . 1 . . . . Recycler 32 | 1 1 2 1 1 5 6 5 2 3 . . . 1 . . 4 Mechanic 5 | . . . 2 . 1 2 . . . . . . . . . . Operator 5 | . . 2 1 . . . 1 . . . 1 . . . . . Watcher 11 | . . 2 2 . 1 3 1 1 . 1 . . . . . . Swarmer 69 | . 3 12 11 2 8 9 8 4 . . . . . . 4 8 Saboteur 1 | . . . . . . 1 . . . . . . . . . . Grunt 142 | . 6 16 32 13 5 23 15 . 4 . . 5 9 . . 14 Brawler 2 | . . . . . . . 1 . . . . 1 . . . . Duelist 11 | . . . 6 1 . 2 1 . . . . 1 . . . . Protector 1 | . . . . . 1 . . . . . . . . . . . Sentry 40 | . . 6 11 8 2 5 2 1 3 . . 1 1 . . . Specialist 10 | . . . . . 7 . . . . . . . . . 1 2 Hunter 34 | . . . 1 3 3 8 4 . 2 . . . . . 2 11 Programmer 36 | . . . . . 5 7 4 2 2 . . . . . . 16 Heavy 5 | . . . . . 1 . . . . . . . . . 1 3 Behemoth 3 | . . . . . . 1 . . 2 . . . . . . . Cetus Guard 3 | . . . . . . . . . . 3 . . . . . . Enhanced Grunt 2 | . . . . . . . . . . . . 2 . . . . Savage 1 | . . . . . . . . . . . . 1 . . . . Best Kill Streak 22 | 4 3 6 13 6 21 13 12 5 4 3 1 4 8 . 5 22 Combat Bots Only 15 | . 3 5 12 6 15 9 10 5 3 2 . 4 7 . 5 11 Max Kills in Single Turn 8 | 1 1 2 4 2 6 8 3 2 1 1 1 2 5 . 2 4 Gunslinging 1 | . . 1 1 . . . . . . . . . . . . . Exploded 6 | . . . 4 . 6 5 2 . . . . 2 4 . 2 2 Melee 1 | . . . . . . . . . . . . . . . . 1 Uniques/NPCs Destroyed . | . . . . . . . . . . . . . . . . . Combat | -11 -10 -9 -8 -8 -7 -6 -5 -4 -4 -4 -4 -4 -3 -2 -2 -1 -------- Run | Yrd Mat Mat Mat Sto Fac Fac Fac Fac Ext Cet Arc Hub Res Res DSF Acc Hostile Shots Fired 2397 | . 47 88 185 136 227 405 184 65 82 16 2 77 104 . 42 737 Missed 721 | . 9 29 56 38 77 123 61 23 32 6 1 21 35 . 13 197 Hits 1676 | . 38 59 129 98 150 282 123 42 50 10 1 56 69 . 29 540 Melee 6 | . . . 1 3 . . . . . . . 2 . . . . Projectile 1670 | . 38 59 128 95 150 282 123 42 50 10 1 54 69 . 29 540 AOE 2 | . . . . . . 1 . . . . . . . . . 1 Critical Strikes 74 | . . . 8 7 4 7 4 . 2 1 1 4 2 . 2 32 Part Disruptions 2 | . . . . . . 1 . 1 . . . . . . . . Damage Taken 24953 | . 409 633 2168 1639 2362 2188 1626 445 532 155 19 804 1017 . 1225 9731 Core 2771 | . 66 10 311 187 143 179 74 15 56 . . 27 63 . 20 1620 Absorbed by Shields 6301 | . . . . . . 1494 629 350 560 158 19 438 433 . 92 2128 Ignored by Resistances 1163 | . . . . . . 375 . . . . . . 279 . . 509 Regen/Repaired (Parts) 671 | . . 109 85 296 . 181 . . . . . . . . . . Core Remaining (%) 81 | 100 73 97 . 9 79 78 92 . . . . 91 95 . 98 . Volleys Fired 910 | 14 44 88 146 83 75 147 67 23 51 14 1 23 12 . 16 106 Largest 5 | 2 2 3 3 3 3 3 4 4 4 4 4 4 4 . 5 5 Hottest 513 | 70 112 180 189 177 191 255 324 280 316 313 313 332 358 . 438 513 Shots Fired 2733 | 28 87 263 399 247 195 408 242 86 162 55 4 76 44 . 61 376 Gun 1895 | 28 87 255 353 233 145 94 116 62 145 55 4 71 40 . 58 149 Cannon 750 | . . 8 29 14 39 298 122 24 3 . . . . . . 213 Launcher 71 | . . . 17 . 9 15 4 . . . . 5 4 . 3 14 Special 17 | . . . . . 2 1 . . 14 . . . . . . . Kinetic 227 | 14 43 36 . 13 10 64 18 19 . . . . . . . 10 Thermal 2403 | 14 44 227 374 234 170 328 220 67 148 55 4 71 40 . 58 349 Explosive 59 | . . . 17 . 9 15 4 . . . . 5 4 . 3 2 Electromagnetic 27 | . . . 8 . 4 . . . . . . . . . . 15 Robot Hit Streak 24 | 4 8 12 19 14 18 23 18 9 24 8 10 12 11 . 12 17 Robot Miss Streak 7 | 2 4 5 4 3 3 4 4 4 3 3 . 3 2 . 1 7 Penetration Max 1 | . . . . . 1 . 1 . . . . . . . . . Secondary Targets 26 | . 1 2 3 7 2 . . . 4 1 . 2 . . . 4 Max Gunslinging Chain 1 | . 1 1 1 1 1 . . . 1 1 . 1 . . . 1 Shots Hit Robots 1696 | 18 55 144 242 162 124 261 149 51 126 36 4 50 30 . 33 211 Core Hits 943 | 5 21 61 144 68 93 148 96 17 40 15 3 40 35 . 17 140 Critical Kills 18 | . . 1 . . . 3 2 1 . . . 1 2 . 3 5 Critical Parts Destroyed 15 | . . . . . 1 3 . . 1 . . 2 1 . 1 6 Critical Strikes 128 | . 1 17 30 12 10 6 7 1 11 4 . 7 5 . 4 13 Burn 92 | . 1 16 30 12 9 . 5 . 10 4 . 4 . . . 1 Meltdown 9 | . . . . . . 3 2 1 . . . . . . . 3 Destroy 26 | . . 1 . . 1 3 . . 1 . . 3 5 . 4 8 Corrupt 1 | . . . . . . . . . . . . . . . . 1 Melee Attacks . | . . . . . . . . . . . . . . . . . Impact . | . . . . . . . . . . . . . . . . . Slashing . | . . . . . . . . . . . . . . . . . Piercing . | . . . . . . . . . . . . . . . . . Sneak Attacks . | . . . . . . . . . . . . . . . . . Combat Hostiles . | . . . . . . . . . . . . . . . . . Follow-up Attacks . | . . . . . . . . . . . . . . . . . Damage Inflicted 52643 | 223 738 2568 7109 2589 4048 7977 4949 1466 2512 860 217 2341 1943 . 1483 11620 Guns 24697 | 223 727 2454 3912 2389 1489 913 1944 996 2439 860 92 1364 899 . 1049 2947 Cannons 15140 | . . 82 246 200 670 5163 2512 470 29 . . . . . . 5768 Explosions 12318 | . . . 2922 . 1850 1819 493 . . . . 949 985 . 434 2866 Melee . | . . . . . . . . . . . . . . . . . Ramming 488 | . 11 32 29 . 39 82 . . 44 . 125 28 59 . . 39 Kinetic 2773 | 99 346 333 . 200 102 583 234 339 . . . . . . . 537 Thermal 37803 | 124 381 2203 4043 2389 1963 6013 4222 1127 2468 860 92 1364 899 . 1049 8606 Explosive 9915 | . . . 2922 . 1850 1299 493 . . . . 949 985 . 434 983 Electromagnetic 1664 | . . . 115 . 94 . . . . . . . . . . 1455 Impact . | . . . . . . . . . . . . . . . . . Slashing . | . . . . . . . . . . . . . . . . . Piercing . | . . . . . . . . . . . . . . . . . Highest Corruption 31 | . . . 4 5 1 3 4 2 3 3 3 3 . . . 31 Average Corruption 3 | . . . 3 4 1 2 2 1 2 3 3 3 . . . 8 Corruption Purged . | . . . . . . . . . . . . . . . . . Corruption Blocked . | . . . . . . . . . . . . . . . . . Effects 220 | . . . 22 21 1 47 9 3 35 13 3 7 . . . 59 Message Errors 51 | . . . 5 2 1 14 1 . 10 1 1 1 . . . 15 Matter Fused 47 | . . . 6 6 . 8 1 1 8 4 . 1 . . . 12 Heat Flow Errors 26 | . . . 4 4 . 8 2 . 5 . . . . . . 3 Energy Discharges 29 | . . . 2 4 . 5 1 . 5 4 1 1 . . . 6 Parts Rejected 3 | . . . . . . 1 . . . . . . . . . 2 Parts Fused 1 | . . . . . . 1 . . . . . . . . . . Data Loss (minor) 23 | . . . 1 1 . 7 2 1 2 2 1 . . . . 6 Data Loss (major) 15 | . . . . 2 . 2 . . 5 1 . 3 . . . 2 Misfires 7 | . . . 2 1 . 1 1 1 . . . . . . . 1 Alerts 4 | . . . 1 1 . . . . . . . . . . . 2 Misdirections 4 | . . . . . . . . . . . . . . . . 4 Weapon Failures 10 | . . . 1 . . . 1 . . 1 . 1 . . . 6 Overload Shots . | . . . . . . . . . . . . . . . . . Overflow Damage 674 | . . . 87 . 66 74 32 16 14 . 28 25 30 . 9 293 Projectiles 391 | . . . 32 . 24 62 29 16 . . . . . . . 228 Explosions 215 | . . . 55 . 42 12 3 . . . . 25 4 . 9 65 Melee 68 | . . . . . . . . . 14 . 28 . 26 . . . Knockbacks 6 | . . 1 . . . 1 . . 1 . . . . . . 3 Impact 4 | . . 1 . . . 1 . . 1 . . . . . . 1 Kinetic 1 | . . . . . . . . . . . . . . . . 1 Secondary 1 | . . . . . . . . . . . . . . . . 1 Self-Inflicted Damage 161 | . . . 24 . 103 . . . . . . . . . . 34 Shots 9 | . . . 2 . 4 . . . . . . . . . . 3 Rammed 28 | . 3 5 4 . 4 4 . . . . 2 2 2 . . 2 Targets Rammed 34 | . 3 5 4 . 6 5 . . 1 . 3 2 2 . . 3 Kicked 1 | . . . . . . . . . 1 . . . . . . . Crushed 5 | . . . . . 2 1 . . . . 1 . . . . 1 Highest Temperature 492 | 126 135 225 260 325 312 190 284 354 356 299 96 424 459 . 144 492 Average Temperature 75 | 64 41 75 59 69 78 37 75 107 102 142 56 159 173 . 40 101 Received Heat Transfer 3671 | . 171 180 945 702 258 449 346 17 77 . 4 197 148 . . 177 Effects 16 | . . . . . . . . 2 3 . . 4 4 . . 3 Shutdowns 9 | . . . . . . . . 2 1 . . 1 4 . . 1 Energy Bleed 1 | . . . . . . . . . 1 . . . . . . . Matter Decay 2 | . . . . . . . . . 1 . . . . . . 1 Damage (minor) 1 | . . . . . . . . . . . . . . . . 1 Damage (major) 3 | . . . . . . . . . . . . 3 . . . . Siege Activations 1 | . . . . . . . . . . . . . . . . 1 Total Turns 3 | . . . . . . . . . . . . . . . . 3 Longest Duration 3 | . . . . . . . . . . . . . . . . 3 Martial Activations . | . . . . . . . . . . . . . . . . . Shielding Activations . | . . . . . . . . . . . . . . . . . Robots Disrupted . | . . . . . . . . . . . . . . . . . Combat Hostiles . | . . . . . . . . . . . . . . . . . Robots Corrupted 8 | . . . . . . . . . . . . . 1 . . 7 Combat Hostiles 6 | . . . . . . . . . . . . . . . . 6 Parts Fried 14 | . . . . . . . . . . . . . . . . 14 Impact Corruptions 4 | . . . . . . . . . 1 . 1 . 1 . . 1 Robots Melted 33 | . . 2 1 3 1 6 6 1 5 1 . 1 . . . 6 Combat Hostiles 30 | . . 1 . 3 1 5 6 1 5 1 . 1 . . . 6 Parts Melted 216 | 1 2 20 27 17 23 33 22 5 20 3 . 5 . . . 38 Heat Transferred 70548 | 370 1110 6031 10952 6771 4921 9545 7443 1628 5363 2235 187 2836 1221 . 1443 8492 Parts Sabotaged . | . . . . . . . . . . . . . . . . . Parts Stolen . | . . . . . . . . . . . . . . . . . Parts Stripped . | . . . . . . . . . . . . . . . . . Power Chain Reactions 6 | . . . . . . . . . . . . . . . . 6 Alert | -11 -10 -9 -8 -8 -7 -6 -5 -4 -4 -4 -4 -4 -3 -2 -2 -1 ------- Run | Yrd Mat Mat Mat Sto Fac Fac Fac Fac Ext Cet Arc Hub Res Res DSF Acc Maximum Alert Level 4 | . . 2 4 2 2 4 4 2 2 1 1 4 2 1 2 4 Low Security (%) 35 | 100 100 41 2 . 60 41 . . 58 97 50 20 . . 5 39 Level 1 25 | . . 47 25 35 31 30 . . 35 2 49 2 . 100 49 24 Level 2 22 | . . 10 23 64 8 16 37 100 6 . . 4 100 . 45 7 Level 3 7 | . . . 12 . . 2 45 . . . . 45 . . . 18 Level 4 8 | . . . 35 . . 8 17 . . . . 26 . . . 9 Level 5 . | . . . . . . . . . . . . . . . . . High Security . | . . . . . . . . . . . . . . . . . Max Security . | . . . . . . . . . . . . . . . . . Sterilizations 2 | . . . 1 . . . . . . . . . . . 1 . Peak Influence 1383 | 20 65 496 1383 614 602 1366 1169 575 421 204 264 1203 676 308 441 1266 Initial 667 | . . . 147 549 266 292 667 553 242 154 60 50 621 308 223 264 Average 401 | 2 11 213 789 477 169 358 806 505 203 133 195 807 581 307 351 441 Influence Increases 13833 | 20 243 1059 1926 815 1039 2017 1118 278 833 331 224 1443 272 . 258 1957 Destroy 0b10 Robot/C 7900 | . 180 680 1220 540 640 1120 700 140 420 160 80 580 200 . 160 1080 Destroy 0b10 Robot/NC 730 | 20 15 75 90 35 105 110 55 20 35 10 10 30 20 . . 100 Destroy Leader 1642 | . 34 154 272 166 176 306 112 32 36 . . 124 30 . 20 180 Allied During Kill 1056 | . . . . . 9 . . . 255 136 90 566 . . . . Successful Hack 105 | . 13 19 10 8 26 17 . 5 7 . . . . . . . Disable Machine 765 | . . 15 60 15 30 300 30 75 45 15 30 45 . . 15 90 Destroy Structure 975 | . 1 11 94 6 38 119 116 6 20 10 14 98 22 . 63 357 Partial Spotted 15 | . . . . . . . 15 . . . . . . . . . Lose Combat Pursuer 645 | . . 105 180 45 15 45 90 . 15 . . . . . . 150 Influence Decreases 12577 | 20 243 709 975 1530 1027 1252 1352 910 1053 457 231 402 908 251 115 1142 Entered New Map 4473 | . . . 203 752 320 306 696 576 255 123 91 94 564 241 75 177 Time Decay 6232 | 20 233 559 712 458 575 726 486 334 598 254 140 198 334 10 . 595 Lost Part 720 | . 10 . 60 20 110 50 20 . 20 . . 10 10 . 40 370 Lost Ally 402 | . . . . . 22 20 . . 180 80 . 100 . . . . Purge Threat 750 | . . 150 . 300 . 150 150 . . . . . . . . . Squads Dispatched 97 | . . 3 13 8 13 21 9 1 2 . . 7 3 . . 17 Investigation 7 | . . 1 2 2 . . 1 . . . . . . . . 1 Extermination 19 | . . . . . 3 7 2 1 . . . . . . . 6 Reinforcement 38 | . . 2 3 2 10 5 1 . 1 . . 3 3 . . 8 Assault 17 | . . . 5 1 . 3 4 . 1 . . 1 . . . 2 Garrison 16 | . . . 3 3 . 6 1 . . . . 3 . . . . Intercept . | . . . . . . . . . . . . . . . . . Searches Triggered . | . . . . . . . . . . . . . . . . . Construction Impeded 7 | . . . . . 1 1 . . 1 . . 1 . . . 3 Haulers Reinforced 5 | . . . . . 1 2 . . . . . . 1 . . 1 Active Scanning Responses . | . . . . . . . . . . . . . . . . . Cargo Convoy Interrupts 1 | . . . . . 1 . . . . . . . . . . . Stealth | -11 -10 -9 -8 -8 -7 -6 -5 -4 -4 -4 -4 -4 -3 -2 -2 -1 --------- Run | Yrd Mat Mat Mat Sto Fac Fac Fac Fac Ext Cet Arc Hub Res Res DSF Acc Distress Signals 47 | . 2 3 8 5 4 5 3 1 3 2 . 2 4 . . 5 Communications Jammed 31 | . . . . . . . . . . . . . . . 8 23 Distress Signals 18 | . . . . . . . . . . . . . . . . 18 Times Spotted 586 | . 17 56 109 41 39 71 63 12 25 10 5 30 17 . 9 82 Peak Tracking Total 11 | . 3 5 8 8 8 5 8 5 4 5 1 11 11 . 5 11 Tactical Retreats 28 | . . 4 10 2 1 2 5 . 1 . . . . . . 3 Traps | -11 -10 -9 -8 -8 -7 -6 -5 -4 -4 -4 -4 -4 -3 -2 -2 -1 ------- Run | Yrd Mat Mat Mat Sto Fac Fac Fac Fac Ext Cet Arc Hub Res Res DSF Acc Traps Triggered 22 | . 5 2 1 3 . 4 1 1 4 . . . . . . 1 Indirectly . | . . . . . . . . . . . . . . . . . Trap Hack Attempts . | . . . . . . . . . . . . . . . . . Triggered . | . . . . . . . . . . . . . . . . . Disarmed . | . . . . . . . . . . . . . . . . . Reprogrammed . | . . . . . . . . . . . . . . . . . Reused . | . . . . . . . . . . . . . . . . . Traps Extracted . | . . . . . . . . . . . . . . . . . Installed . | . . . . . . . . . . . . . . . . . Triggered . | . . . . . . . . . . . . . . . . . Machines | -11 -10 -9 -8 -8 -7 -6 -5 -4 -4 -4 -4 -4 -3 -2 -2 -1 ---------- Run | Yrd Mat Mat Mat Sto Fac Fac Fac Fac Ext Cet Arc Hub Res Res DSF Acc Machines Disabled 52 | . . 1 5 1 2 20 2 5 3 1 2 3 . . 1 6 Max in Single Turn 7 | . . 1 2 1 1 7 1 2 1 1 . . . . 1 2 Garrison Access 2 | . . . . . 1 1 . . . . . . . . . . Machines Repaired . | . . . . . . . . . . . . . . . . . Machines Dismantled 5 | . . . . . . . . 1 3 1 . . . . . . Machines Sabotaged . | . . . . . . . . . . . . . . . . . Overloaded Fab Kills . | . . . . . . . . . . . . . . . . . Hacking | -11 -10 -9 -8 -8 -7 -6 -5 -4 -4 -4 -4 -4 -3 -2 -2 -1 --------- Run | Yrd Mat Mat Mat Sto Fac Fac Fac Fac Ext Cet Arc Hub Res Res DSF Acc Machines Accessed 65 | . 8 11 8 7 7 8 2 3 6 1 . 1 1 1 . 1 Terminals 45 | . 7 7 7 4 3 4 1 2 6 1 . 1 . 1 . 1 Fabricators 4 | . . . . . 2 1 . 1 . . . . . . . . Repair Stations 6 | . . 1 1 2 . 1 . . . . . . 1 . . . Recycling Units 5 | . 1 1 . . 1 2 . . . . . . . . . . Scanalyzers 2 | . . 2 . . . . . . . . . . . . . . Garrison Access 3 | . . . . 1 1 . 1 . . . . . . . . . Total Hacks 152 | . 19 37 27 16 12 14 5 5 9 1 . 1 2 1 . 3 Successful 71 | . 10 17 12 7 5 10 2 1 5 . . . 1 1 . . Failed 79 | . 8 19 15 9 7 4 3 4 4 1 . 1 1 . . 3 Catastrophic 21 | . 1 5 4 2 1 . 1 1 2 1 . 1 1 . . 1 Database Lockouts 2 | . 1 1 . . . . . . . . . . . . . . Manual 74 | . 11 19 18 1 7 11 2 1 . 1 3 . . . . . Terminals 113 | . 17 30 25 8 6 6 3 3 9 1 . 1 . 1 . 3 Fabricators 9 | . . . . . 4 3 . 2 . . . . . . . . Repair Stations 13 | . . 2 2 5 . 2 . . . . . . 2 . . . Recycling Units 9 | . 2 3 . . 1 3 . . . . . . . . . . Scanalyzers 2 | . . 2 . . . . . . . . . . . . . . Garrison Access 6 | . . . . 3 1 . 2 . . . . . . . . . Terminal Hacks 37 | . 5 8 8 3 2 3 2 . 5 . . . . 1 . . Record 4 | . 1 . 1 . 1 . . . 1 . . . . . . . Part Schematic 1 | . . . . . . . . . 1 . . . . . . . Robot Analysis 3 | . 1 2 . . . . . . . . . . . . . . Prototype ID Bank 3 | . 1 . 2 . . . . . . . . . . . . . Open Door 1 | . . . . . . . . . 1 . . . . . . . Open DSF 1 | . . . . . . . . . . . . . . 1 . . Branch Access Points 1 | . . 1 . . . . . . . . . . . . . . Alert Level 14 | . 1 3 3 1 1 2 1 . 2 . . . . . . . Unreport Threat 6 | . . 1 1 2 . 1 1 . . . . . . . . . Hauler Manifests 3 | . 1 1 1 . . . . . . . . . . . . . Fabricator Hacks 2 | . . . . . 1 . . 1 . . . . . . . . Build 2 | . . . . . 1 . . 1 . . . . . . . . Repair Station Hacks 11 | . . 2 2 4 . 2 . . . . . . 1 . . . Scan Component 6 | . . 1 1 2 . 1 . . . . . . 1 . . . Repair 5 | . . 1 1 2 . 1 . . . . . . . . . . Recycling Unit Hacks 2 | . . 2 . . . . . . . . . . . . . . Process 1 | . . 1 . . . . . . . . . . . . . . Retrieve Components 1 | . . 1 . . . . . . . . . . . . . . Scanalyzer 1 | . . 1 . . . . . . . . . . . . . . Retrieve Study 1 | . . 1 . . . . . . . . . . . . . . Garrison Access Hacks 1 | . . . . . 1 . . . . . . . . . . . Seal Access 1 | . . . . . 1 . . . . . . . . . . . Unauthorized Hacks 17 | . 5 4 2 . 1 5 . . . . . . . . . . Terminals 13 | . 5 4 2 . . 2 . . . . . . . . . . Botnet 12 | . 5 3 2 . . 2 . . . . . . . . . . Operators 1 | . . 1 . . . . . . . . . . . . . . Fabricators 1 | . . . . . 1 . . . . . . . . . . . Haulers 1 | . . . . . 1 . . . . . . . . . . . Repair Stations . | . . . . . . . . . . . . . . . . . Recycling Units 3 | . . . . . . 3 . . . . . . . . . . Reject 1 | . . . . . . 1 . . . . . . . . . . Recyclers 2 | . . . . . . 2 . . . . . . . . . . Scanalyzers . | . . . . . . . . . . . . . . . . . Garrison Access . | . . . . . . . . . . . . . . . . . Data Cores Recovered 1 | . . 1 . . . . . . . . . . . . . . Used 1 | . . 1 . . . . . . . . . . . . . . Hacking Detections 57 | . 8 11 8 6 6 4 2 3 4 1 . 1 1 1 . 1 Full Trace Events 8 | . 1 1 2 2 . . 1 . . . . . . . . 1 Feedback Events 1 | . . . 1 . . . . . . . . . . . . . Corruption 1 | . . . 1 . . . . . . . . . . . . . Feedback Blocked . | . . . . . . . . . . . . . . . . . Robot Schematics Acquired . | . . . . . . . . . . . . . . . . . Robots Built 2 | . . . . . 2 . . . . . . . . . . . Authchips . | . . . . . . . . . . . . . . . . . Time 116 | . . . . . 116 . . . . . . . . . . . Total Robot Build Rating 6 | . . . . . 6 . . . . . . . . . . . Part Schematics Acquired 1 | . . . . . . . . . 1 . . . . . . . Parts Built 2 | . . . . . . . . 2 . . . . . . . . Authchips . | . . . . . . . . . . . . . . . . . Time 139 | . . . . . . . . 139 . . . . . . . . Total Part Build Rating 18 | . . . . . . . . 18 . . . . . . . . Part Studies Acquired 1 | . . 1 . . . . . . . . . . . . . . Parts Repaired 5 | . . 1 1 2 . 1 . . . . . . . . . . Time 203 | . . 26 51 82 . 44 . . . . . . . . . . Parts Recycled . | . . . . . . . . . . . . . . . . . Recycled Matter 8 | . . 8 . . . . . . . . . . . . . . Retrieved Matter . | . . . . . . . . . . . . . . . . . Retrieved Components . | . . . . . . . . . . . . . . . . . Parts Scanalyzed . | . . . . . . . . . . . . . . . . . Part Schematics Acquired . | . . . . . . . . . . . . . . . . . Parts Damaged . | . . . . . . . . . . . . . . . . . Bothacking | -11 -10 -9 -8 -8 -7 -6 -5 -4 -4 -4 -4 -4 -3 -2 -2 -1 ------------ Run | Yrd Mat Mat Mat Sto Fac Fac Fac Fac Ext Cet Arc Hub Res Res DSF Acc Used RIF Installer . | . . . . . . . . . . . . . . . . . Robots Hacked 1 | . . . . . . 1 . . . . . . . . . . Non-combat 1 | . . . . . . 1 . . . . . . . . . . Combat . | . . . . . . . . . . . . . . . . . Robot Hacks Applied 1 | . . . . . . 1 . . . . . . . . . . find_chute 1 | . . . . . . 1 . . . . . . . . . . Relay Couplers Released 1 | . . . . . . 1 . . . . . . . . . . Machine Destruction 1 | . . . . . . 1 . . . . . . . . . . Fabnet Peak Effective % . | . . . . . . . . . . . . . . . . . Robots Rewired 12 | . . . . . . 1 . . 11 . . . . . . . Allies Hacked . | . . . . . . . . . . . . . . . . . Hacks Repelled . | . . . . . . . . . . . . . . . . . Allies | -11 -10 -9 -8 -8 -7 -6 -5 -4 -4 -4 -4 -4 -3 -2 -2 -1 -------- Run | Yrd Mat Mat Mat Sto Fac Fac Fac Fac Ext Cet Arc Hub Res Res DSF Acc Total Allies 26 | . . . . . 2 1 . . 18 5 . . . . . . Largest Group 14 | . . . . . 2 1 . . 14 10 9 8 . . . . Highest-Rated Group 800 | . . . . . 48 29 . . 705 800 759 604 . . . . Highest-Rated Ally 159 | . . . . . 24 29 . . 159 159 153 96 . . . . Initial Warlord ECA Mod 9 | . . . . . . . . . . . . . . . . 9 Total Orders . | . . . . . . . . . . . . . . . . . Ally Attacks 287 | . . . . . 7 4 . . 92 49 17 118 . . . . Total Damage 9566 | . . . . . 136 56 . . 2650 1164 778 4782 . . . . Kills 52 | . . . . . 2 . . . 13 6 5 26 . . . . Allies Corrupted . | . . . . . . . . . . . . . . . . . Allies Melted . | . . . . . . . . . . . . . . . . . Intel | -11 -10 -9 -8 -8 -7 -6 -5 -4 -4 -4 -4 -4 -3 -2 -2 -1 ------- Run | Yrd Mat Mat Mat Sto Fac Fac Fac Fac Ext Cet Arc Hub Res Res DSF Acc Active Infowar (turns) 11270 | 20 217 . . . . 2889 1267 750 1908 553 289 403 751 21 402 1800 Optics 2968 | . . . . . . . . . . . . . 745 21 402 1800 Sensors 1511 | . . . . . . . . 600 . . . . 5 . . 906 Terrain 987 | . . . . . . . . . . . . 1 . . . 986 Seismic 237 | 20 217 . . . . . . . . . . . . . . . T.N.C. 11033 | . . . . . . 2889 1267 750 1908 553 289 403 751 21 402 1800 Jamming 749 | . . . . . . . . . . . . . . . 381 368 Robot Analysis Total 3 | . 1 2 . . . . . . . . . . . . . . Derelict Logs Recovered . | . . . . . . . . . . . . . . . . . Drone Launches . | . . . . . . . . . . . . . . . . . Drone Recoveries . | . . . . . . . . . . . . . . . . . Exploration | -11 -10 -9 -8 -8 -7 -6 -5 -4 -4 -4 -4 -4 -3 -2 -2 -1 ------------- Run | Yrd Mat Mat Mat Sto Fac Fac Fac Fac Ext Cet Arc Hub Res Res DSF Acc Turns Passed 22624 | 142 1263 2537 3222 1140 2172 3914 1267 750 1908 553 289 403 751 21 402 1890 Spaces Moved 8625 | 60 592 1002 934 368 887 1389 489 277 747 185 158 159 412 12 135 819 Core 163 | 10 . . . . . . . . . . . . . . . 153 Treads 7111 | 50 592 1002 934 368 887 1389 21 . 141 185 158 159 412 12 135 666 Legs 1065 | . . . . . . . 182 277 606 . . . . . . . Wheels 286 | . . . . . . . 286 . . . . . . . . . Hover . | . . . . . . . . . . . . . . . . . Flight . | . . . . . . . . . . . . . . . . . Fastest Speed 50 | 50 160 200 160 160 160 210 130 190 190 160 160 160 156 156 145 50 Average Speed 193 | 141 179 205 199 198 196 225 188 200 206 172 160 160 159 156 152 160 Slowest Speed 295 | 160 240 240 200 200 235 295 295 260 260 240 160 160 160 156 240 241 Overloaded Moves . | . . . . . . . . . . . . . . . . . Propulsion Burnouts . | . . . . . . . . . . . . . . . . . Robots Hopped . | . . . . . . . . . . . . . . . . . Potential Cave-ins . | . . . . . . . . . . . . . . . . . Cave-ins Triggered 1 | . . . 1 . . . . . . . . . . . . . Exploration Rate (%) 48 | 3 80 74 91 49 23 40 19 7 77 75 94 18 18 . 78 29 Regions Visited 16 Branch Regions 5 Pre-discovered Areas . | . . . . . . . . . . . . . . . . . Known Exits Taken 6 | . . . . . . . . 1 1 1 1 1 . 1 . . Unknown Exits Taken 9 | 1 1 1 1 1 1 1 1 . . . . . 1 . . . Scrap Searched . | . . . . . . . . . . . . . . . . . Spaces Dug 7 | . . . 3 . . . . . . . . . . . . 4 Terrain Destroyed 528 | . . . 96 2 40 149 62 3 1 . . 13 11 . 30 121 Melee . | . . . . . . . . . . . . . . . . . Projectile 120 | . . . 7 2 . 13 31 3 1 . . 2 . . 1 60 AOE 408 | . . . 89 . 40 136 31 . . . . 11 11 . 29 61 Terrain Rammed . | . . . . . . . . . . . . . . . . . Walls Destroyed . | . . . . . . . . . . . . . . . . . Machines Disabled . | . . . . . . . . . . . . . . . . . Actions | -11 -10 -9 -8 -8 -7 -6 -5 -4 -4 -4 -4 -4 -3 -2 -2 -1 --------- Run | Yrd Mat Mat Mat Sto Fac Fac Fac Fac Ext Cet Arc Hub Res Res DSF Acc Total 12515 | 86 697 1293 1985 596 1173 1886 678 397 978 368 191 259 475 14 297 1142 Wait 2005 | 3 17 133 816 106 129 210 47 53 53 139 26 41 26 1 107 98 Move 8609 | 59 591 1001 933 367 886 1388 488 276 746 184 157 158 411 11 134 819 Hop . | . . . . . . . . . . . . . . . . . Pick Up 184 | 2 19 22 18 3 23 33 10 8 13 3 1 4 4 . 8 13 Fast Attach 124 | 6 11 4 5 4 8 20 12 4 9 4 . 6 1 . 9 21 Attach 75 | 1 . 2 8 3 12 6 8 2 3 . . 1 3 2 3 21 Detach 30 | . . . . 1 5 3 7 . 1 1 . 2 . . 2 8 Swap 205 | 1 6 9 27 15 14 27 13 12 24 4 1 9 10 . 5 28 Drop 276 | . 6 29 28 14 15 45 26 10 36 9 2 13 6 . 13 24 Fire 910 | 14 44 88 146 83 75 147 67 23 51 14 1 23 12 . 16 106 Melee . | . . . . . . . . . . . . . . . . . Ram . | . . . . . . . . . . . . . . . . . Kick 1 | . . . . . . . . . 1 . . . . . . . Crush 33 | . 3 5 4 . 6 5 . . . . 3 2 2 . . 3 Escape Stasis 17 | . . . . . . . . . 17 . . . . . . . Rewire 2 | . . . . . . 2 . . . . . . . . . . Trap . | . . . . . . . . . . . . . . . . . Miscellaneous 44 | . . . . . . . . 9 24 10 . . . . . 1 Route ------- -11/Scrapyard -10/Materials (discovered 5 exits: *Mat x3 / [*Min] / [*Sub]) -9/Materials (discovered 4 exits: *Mat x2 / *Min x2) -8/Materials (discovered 4 exits: *Fac x2 / *Sto x2) -8/Storage -7/Factory -6/Factory (discovered 3 exits: *Fac / *Low x2) -5/Factory -4/Factory (discovered 2 exits: [*Upp] / *Ext) -4/Extension (discovered 2 exits: *Res / *Cet) -4/Cetus (discovered 2 exits: *Res / *Arc) -4/Archives (discovered 3 exits: *Res / *Hub x2) -4/Hub_04(d) -3/Research -2/Research -2/DSF -1/Access History --------- Turn | Location | Event 6 | -11/Scrapyard | Discovered new exit (range 15) 143 | -11/Scrapyard | Entered Materials 300 | -10/Materials | Build established: Mutant 340 | -10/Materials | Discovered new exit (range 13) 613 | -10/Materials | Discovered new exit (range 16) 631 | -10/Materials | Central database locked down 728 | -10/Materials | Discovered new exit (range 15) 1060 | -10/Materials | Discovered new exit (range 3) 1156 | -10/Materials | Discovered new exit (range 16) 1343 | -10/Materials | Derelicts attacked the area 1406 | -10/Materials | Entered another Materials area 1406 | -9/Materials | Evolved 2 slots: Utility x1, Weapon x1 1705 | -9/Materials | Build established: Tank 2071 | -9/Materials | Discovered new exit (range 3) 2728 | -9/Materials | Repaired Lgt. Treads+ 2744 | -9/Materials | Discovered new exit (range 8) 3087 | -9/Materials | Discovered new exit (range 6) 3152 | -9/Materials | Identified exit to Mines 3617 | -9/Materials | Central database locked down 3943 | -9/Materials | Entered another Materials area 3943 | -8/Materials | Evolved 2 slots: Propulsion x1, Utility x1 4015 | -8/Materials | Garrison activated, responded to threat 4231 | -8/Materials | Build established: Scavenger-Tank 4387 | -8/Materials | Discovered new exit (range 15) 4736 | -8/Materials | Discovered new exit (range 4) 4808 | -8/Materials | Discovered new exit (range 16) 5063 | -8/Materials | Repaired Imp. Medium Laser 5543 | -8/Materials | First assault squad dispatched 5552 | -8/Materials | Discovered new exit (range 16) 5652 | -8/Materials | Destroyed 12 combat bots 6003 | -8/Materials | Sterilization system engaged 6003 | -8/Materials | Non-combat units ordered to evacuate 6103 | -8/Materials | Combat units ordered to evacuate 6203 | -8/Materials | Crushed by falling debris 6203 | -8/Materials | Core integrity fell below 50% 6303 | -8/Materials | Ambient heat levels rising (+10) 6453 | -8/Materials | Ambient heat levels rising (+10) 6603 | -8/Materials | Ambient heat levels rising (+10) 6753 | -8/Materials | Ambient heat levels rising (+10) 6903 | -8/Materials | Ambient heat levels rising (+10) 7053 | -8/Materials | Ambient heat levels rising (+10) 7165 | -8/Materials | Entered Storage 7260 | -8/Storage | Repaired Imp. Cooling System 7805 | -8/Storage | Garrison activated, responded to threat 7810 | -8/Storage | Build established: Tank 7965 | -8/Storage | First assault squad dispatched 8002 | -8/Storage | Repaired Hvy. Armor Plating 8011 | -8/Storage | Core integrity fell below 20% 8275 | -8/Storage | Discovered new exit (range 15) 8299 | -8/Storage | Build established: Scavenger-Tank 8305 | -8/Storage | Entered Factory 8305 | -7/Factory | Evolved 2 slots: Propulsion x1, Utility x1 8541 | -7/Factory | Found Powered Armor 8549 | -7/Factory | Found Powered Armor 8964 | -7/Factory | Fabricated X-57 Shotgunner? 9549 | -7/Factory | Cargo convoy interrupted 10232 | -7/Factory | Discovered new exit (range 5) 10315 | -7/Factory | Destroyed 15 combat bots 10318 | -7/Factory | Lost 7 parts (3n3u1w) 10477 | -7/Factory | Entered another Factory area 10477 | -6/Factory | Evolved 2 slots: Power x1, Utility x1 11363 | -6/Factory | Discovered new exit (range 13) 11501 | -6/Factory | Identified exit to Lower Caves 11645 | -6/Factory | Garrison activated, responded to threat 11742 | -6/Factory | Discovered exit to Lower Caves (range 15) 12264 | -6/Factory | Garrison activated, responded to threat 13841 | -6/Factory | Spotted B-75 Beast 13855 | -6/Factory | Destroyed B-75 Beast 14098 | -6/Factory | Destroyed 9 combat bots 14136 | -6/Factory | Discovered new exit (range 16) 14315 | -6/Factory | Repaired Med. Treads 14327 | -6/Factory | First assault squad dispatched 14391 | -6/Factory | Entered another Factory area 14391 | -5/Factory | Evolved 2 slots: Propulsion x1, Weapon x1 14479 | -5/Factory | Garrison activated, responded to threat 15291 | -5/Factory | First assault squad dispatched 15467 | -5/Factory | Destroyed 10 combat bots 15641 | -5/Factory | Discovered new exit (range 9) 15658 | -5/Factory | Entered another Factory area 15658 | -4/Factory | Evolved 2 slots: Power x1, Utility x1 16095 | -4/Factory | Fabricated Rnf. Quantum Reactor (x2) 16220 | -4/Factory | Build established: Scavenger-Skirmisher 16264 | -4/Factory | Discovered new exit (range 13) 16399 | -4/Factory | Discovered new exit (range 4) 16406 | -4/Factory | Identified exit to Extension 16408 | -4/Factory | Entered Extension 16663 | -4/Extension | Build established: Scavenger-Tank 17312 | -4/Extension | Rescued A7 17375 | -4/Extension | Rescued a captive Derelict 17375 | -4/Extension | Rescued a captive Derelict 17450 | -4/Extension | Rescued a captive Derelict 17451 | -4/Extension | Rescued a captive Derelict 17702 | -4/Extension | Spotted B-86 Titan 17708 | -4/Extension | Destroyed B-86 Titan 17718 | -4/Extension | Spotted B-86 Titan 17725 | -4/Extension | Destroyed B-86 Titan 17850 | -4/Extension | Rescued a captive Derelict 17854 | -4/Extension | Rescued a captive Derelict 17908 | -4/Extension | First assault squad dispatched 17910 | -4/Extension | Lost 4 allies 18058 | -4/Extension | Lost 4 allies 18259 | -4/Extension | Discovered new exit (range 16) 18261 | -4/Extension | Discovered new exit (range 15) 18299 | -4/Extension | Identified exit to Cetus 18316 | -4/Extension | Entered Cetus 18316 | -4/Cetus | Accompanied by 8 allies (A7) 18321 | -4/Cetus | Acquired a Cetus Manufacturing Module code from A7 18331 | -4/Cetus | Spotted Cetus Guard 18333 | -4/Cetus | Spotted Cetus Guard 18339 | -4/Cetus | Spotted Cetus Guard 18345 | -4/Cetus | Allies destroyed Cetus Guard 18351 | -4/Cetus | Spotted Cetus Guard 18354 | -4/Cetus | Allies destroyed Cetus Guard 18357 | -4/Cetus | Destroyed Cetus Guard 18362 | -4/Cetus | Allies destroyed Cetus Guard 18366 | -4/Cetus | Lost 3 allies 18537 | -4/Cetus | Escorted A7 to Cetus Mainframe 18554 | -4/Cetus | Started Cetus Manufacturing Module 18579 | -4/Cetus | Manufactured an Enhanced Grunt 18604 | -4/Cetus | Manufactured an Enhanced Grunt 18629 | -4/Cetus | Manufactured an Enhanced Grunt 18654 | -4/Cetus | Manufactured an Enhanced Grunt 18679 | -4/Cetus | Manufactured an Enhanced Grunt 18708 | -4/Cetus | Discovered new exit (range 15) 18741 | -4/Cetus | Spotted Cetus Guard 18741 | -4/Cetus | Spotted Cetus Guard 18743 | -4/Cetus | Spotted Cetus Guard 18743 | -4/Cetus | Spotted Cetus Guard 18751 | -4/Cetus | Allies destroyed Cetus Guard 18751 | -4/Cetus | Destroyed Cetus Guard 18757 | -4/Cetus | Allies destroyed Cetus Guard 18760 | -4/Cetus | Destroyed Cetus Guard 18773 | -4/Cetus | Discovered new exit (range 16) 18781 | -4/Cetus | Met Revision 17 18848 | -4/Cetus | Identified exit to Archives 18869 | -4/Cetus | Entered Archives 18869 | -4/Archives | Accompanied by 9 allies (A7) 18874 | -4/Archives | Received a hacking code to weaken MAIN.C 18916 | -4/Archives | Unable to access archive contents 18935 | -4/Archives | Discovered new exit (range 15) 18962 | -4/Archives | Identified exit to Hub_04(d) 18999 | -4/Archives | Discovered exit to Hub_04(d) (range 14) 19061 | -4/Archives | Discovered new exit (range 13) 19079 | -4/Archives | Identified exit to Research 19158 | -4/Archives | Entered Hub_04(d) 19158 | -4/Hub_04(d) | Accompanied by 8 allies 19244 | -4/Hub_04(d) | Garrison activated, responded to threat 19296 | -4/Hub_04(d) | Lost 5 allies 19303 | -4/Hub_04(d) | Found Prototype Device 19303 | -4/Hub_04(d) | Identified Exp. Thermal Shield 19408 | -4/Hub_04(d) | First assault squad dispatched 19512 | -4/Hub_04(d) | Discovered exit to Research (range 5) 19561 | -4/Hub_04(d) | Entered Research 19561 | -3/Research | Evolved 2 slots: Propulsion x1, Utility x1 19761 | -3/Research | Revision forces began assault on 0b10 19800 | -3/Research | Spotted B-86 Titan 19844 | -3/Research | Met up with Revision 17++ 19877 | -3/Research | Destroyed 7 combat bots 20242 | -3/Research | Discovered new exit (range 22) 20261 | -3/Research | Research terminal network offline 20312 | -3/Research | Entered another Research area 20312 | -2/Research | Evolved 2 slots: Utility x1, Weapon x1 20331 | -2/Research | Identified exit to DSF 20333 | -2/Research | Entered DSF 20368 | -2/DSF | Additional patrols routed to DSF 20404 | -2/DSF | Lost 4 parts (1n2u1w) 20448 | -2/DSF | Discovered new exit (range 22) 20572 | -2/DSF | Sterilization system engaged 20592 | -2/DSF | Ambient heat levels rising (+10) 20607 | -2/DSF | Ambient heat levels rising (+10) 20622 | -2/DSF | Ambient heat levels rising (+10) 20637 | -2/DSF | Ambient heat levels rising (+10) 20652 | -2/DSF | Ambient heat levels rising (+10) 20667 | -2/DSF | Ambient heat levels rising (+10) 20682 | -2/DSF | Ambient heat levels rising (+10) 20696 | -2/DSF | Build established: Scavenger-Gunner 20697 | -2/DSF | Ambient heat levels rising (+10) 20712 | -2/DSF | Ambient heat levels rising (+10) 20727 | -2/DSF | Ambient heat levels rising (+10) 20735 | -2/DSF | Entered Access 20735 | -1/Access | Evolved 2 slots: Utility x2 21187 | -1/Access | Build established: Scavenger-Skirmisher 21364 | -1/Access | Lost 4 parts (4w) 21719 | -1/Access | Destroyed 7 combat bots 21730 | -1/Access | Found Gamma Bomb Array 21808 | -1/Access | Found Prototype Launcher 21808 | -1/Access | Identified Point Singularity Launcher 21921 | -1/Access | System corruption reached 10% 22007 | -1/Access | Destroyed 10 combat bots 22482 | -1/Access | System corruption reached 30% 22485 | -1/Access | First assault squad dispatched 22485 | -1/Access | Destroyed 11 combat bots 22488 | -1/Access | Spotted B-99 Colossus 22491 | -1/Access | Lost 11 parts (1p3n2u5w) 22510 | -1/Access | Spotted B-99 Colossus 22535 | -1/Access | Released all parts (7) 22538 | -1/Access | Core integrity fell below 50% 22542 | -1/Access | Core integrity fell below 20% 22564 | -1/Access | Lost 13 parts (1p3n5u4w) 22619 | -1/Access | Spotted B-99 Colossus 22625 | -1/Access | Destroyed by P-80 Master with Gamma Rifle Last Messages --------------- 22544_ U-05 Engineer lays Concrete. 22553_ K-01 Serf cleans the Spectral Interrupter. 22574_ W-44 Eye sends out distress signal. 22578_ Acquired Enh. Quantum Rifle. 22579_ Dropped Enh. Quantum Rifle. 22582_ System corrupted: Heat flow error (+208). 22591_ Connecting with Terminal... 22591_ Current location identified: Access 22591_ ALERT: Suspicious activity at Terminal A022. Dispatching Investigation squad. 22599_ System corrupted: Component data lost. 22614_ System corrupted: Matter fused (-5). 22619_ O-32 Director: "IFF HANDSHAKE FAILED. SECURING TERMINAL." 22620_ Terminal disabled. 22620_ Slug penetrates R-10 Processor. 22622_ W-44 Eye sends out distress signal. 22624_ Penetrated by Slug. 22625_ Acquired 2 matter. Map ----- +----------------------------------------------------+ | ???????????????????????????????????????# | | ???????????????????????????????????????# | | ???????????????????????????????????????# | | ???????????????????????????????????????# | | ???????????????????????????????????????## | | ????????????????????????????????????????? | | ???????????? ???????????????????????? | | ?????????? ?????????????????????? | | ??????? ??????????????????? | | ????? #????????????????? | | ??? #????????????????? | | ??? #????????????????? | | ??" u #????????????????? | | ???" #????????????????? | | ??"" o #????????????????? | | ??T #????????????????? | | ??"" ]! #????????????????? | | ??"" ]! #????????????????? | | ??"" #????????????????? | | ???# #????????????????? | | ???# ! k#????????????????? | | ???# R ######+##????????? | | ???# w ???????? | | ???# ##### % p ???????? | | ?????????# ???????? | | ?????????# @ ???????? | | ?????????# ???????? | | ?????????###### ####### ????????? | | ??????????????# #?????????????????? | | ??????????????# #?????????????????? | | ??????????????# #?????????????????? | | ??????????????# #?????????????????? | | ??????????????# #?????????????????? | | ??????????????# #?????????????????? | | ??????????????# #?????????????????? | | ??????????????# #?????????????????? | | ??????????????# #?????????????????? | | ??????????????# #?????????????????? | | ??????????????# #?????????? ????? | | ??????????????# #???????? #???? | | ??????????????# n #?????? #???? | | ??????????????# ####### #???? | | ??????????????# ##### | | ??????????????# | | ??????????????# | | ??????????????# | | ??????????????# "" "" "" | | ????????????### "" "" "" | | ????????????#"" """""" """""" """" | | ????????????#"" """""" """""" """" | +----------------------------------------------------+ Best States ------------- Heat Dissipation 163 Energy Generation 65 Energy Capacity 850 Matter Stores 300 Matter Capacity 300 Sight Range 22 Robot Scan Range 16 Terrain Scan Range 24 Terrain Scan Density 10 Jamming Range 16 Armor Coverage 1000 Resistance: KI 20 Resistance: TH 30 Weapon Cycling 15 Evasion (%) 50 Target Analysis 8 Recoil Reduction 6 Item Schematics ----------------- Gamma Bomb Array | -4/Extension | Hacked Robot Schematics ------------------ None Fabricated ------------ X-57 Shotgunner | x2 | -7/Factory | Preloaded Rnf. Quantum Reactor | x2 | -4/Factory | Preloaded Repaired ---------- Lgt. Treads | 22% | -9/Materials Imp. Medium Laser | 5% | -8/Materials Imp. Cooling System | 55% | -8/Storage Hvy. Armor Plating | 11% | -8/Storage Med. Treads | 2% | -6/Factory Studied --------- Lgt. Treads | -9/Materials | Hacked Alien Tech Used ----------------- None Achievements -------------- Junior Dev Challenges ------------ None Game ------ Seed LightningArcRefractor Manual? 0 Play Time 03:01:06 Cumulative 341.9 hours Start 2026.09.07 @ 09:58:03 End 2026.09.07 @ 13:07:28 Sessions 1 Manual Loads 0 Difficulty Rogue Special Mode None Game No. 175 Rogue 175 Adventurer 0 Explorer 0 Win Type - Total 8 Types 8/0/0/0/0/0/0/0/0/0 Lore% 57 Gallery% 63 Achievement% 46 Wizard Run 0 Options --------- Layout 1 ASCII 0 Keyboard 0 Movement Numpad Keybinds 0 Fullscreen 1 Font 24/Smallcaps Map View 50x35 Zoom Use 0% Tactical HUD 1 Map Filters NONE Filters NONE Steam 1 RUN: 3ddc1018-235c-4beb-9d70-7227ba303557